fUST/lending_fUST_20260228
["ID","MTS","AMOUNT","RATE_DAILY","PERIOD"]
[406898969,1772267539958,-1033.36,0.00017534,2]
[406898970,1772267539968,-500.0,0.00017534,2]
[406898971,1772267539978,-500.0,0.00017534,2]
[406898972,1772267539988,-2312.35,0.00017534,2]
[406898973,1772267539998,-955.01,0.00017534,2]
[406898974,1772267540008,-806.51,0.00017534,2]
[406898975,1772267540018,-1522.66,0.00017534,2]
[406898976,1772267540028,-867.0,0.00017534,2]
[406898977,1772267540040,-7146.16,0.00017534,2]
[406898978,1772267540050,-500.0,0.00017534,2]
[406898979,1772267540061,-500.0,0.00017534,2]
[406898980,1772267540071,-1028.35,0.00017534,2]
[406898981,1772267540080,-1008.96,0.00017534,2]
[406898982,1772267540090,-1352.59,0.00017534,2]
[406898983,1772267540099,-506.03,0.00017534,2]
[406898984,1772267540109,-500.0,0.00017534,2]
[406898985,1772267540118,-500.0,0.00017534,2]
[406898986,1772267540128,-500.0,0.00017534,2]
[406898987,1772267540139,-764.41,0.00017534,2]
[406898988,1772267540149,-500.0,0.00017534,2]
[406898989,1772267540161,-1761.81,0.00017534,2]
[406898990,1772267540171,-2215.04,0.00017534,2]
[406898991,1772267540181,-517.41,0.00017534,2]
[406898992,1772267540192,-517.59,0.00017534,2]
[406898993,1772267540202,-590.0687942,0.00017534,2]
[406898994,1772267540211,-496.84809073,0.00017534,2]
[406898995,1772267540221,-963.32,0.00017534,2]
[406898996,1772267540232,-700.0,0.00017534,2]
[406898997,1772267540242,-899.12,0.00017534,2]
[406898998,1772267540253,-1300.35,0.00017534,2]
[406898999,1772267540262,-5319.48,0.00017534,2]
[406899000,1772267540272,-1252.77,0.00017534,2]
[406899001,1772267540283,-587.74,0.00017534,2]
[406899002,1772267540293,-1166.63,0.00017534,2]
[406899003,1772267540302,-899.07,0.00017534,2]
[406899004,1772267540312,-2895.24,0.00017534,2]
[406899005,1772267540322,-1068.48,0.00017534,2]
[406899006,1772267540332,-968.49,0.00017534,2]
[406899007,1772267540342,-500.0,0.00017534,2]
[406899008,1772267540352,-2416.57,0.00017534,2]
[406899009,1772267540362,-1587.58,0.00017534,2]
[406899010,1772267540372,-647.96,0.00017534,2]
[406899011,1772267540382,-8070.28,0.00017534,2]
[406899012,1772267540391,-731.15,0.00017534,2]
[406899013,1772267540401,-500.0,0.00017534,2]
[406899014,1772267540411,-500.0,0.00017534,2]
[406899015,1772267540421,-1997.06,0.00017534,2]
[406899016,1772267540431,-3186.98,0.00017534,2]
[406899017,1772267540441,-3896.0,0.00017534,2]
[406899018,1772267540451,-527.94,0.00017534,2]
[406899019,1772267540460,-989.6,0.00017534,2]
[406899020,1772267540470,-7025.66,0.00017534,2]
[406899021,1772267540480,-500.0,0.00017534,2]
[406899022,1772267540490,-682.38,0.00017534,2]
[406899023,1772267540500,-659.28,0.00017534,2]
[406899024,1772267540519,-728.78,0.00017534,2]
[406899025,1772267540529,-898.93,0.00017534,2]
[406899026,1772267540539,-793.11,0.00017534,2]
[406899027,1772267540548,-1706.3,0.00017534,2]
[406899028,1772267540557,-659.85,0.00017534,2]
[406899029,1772267540567,-1134.79,0.00017534,2]
[406899030,1772267540576,-11125.25,0.00017534,2]
[406899031,1772267540585,-7153.51,0.00017534,2]
[406899032,1772267540594,-648.35,0.00017534,2]
[406899033,1772267540604,-5078.3,0.00017534,2]
[406899034,1772267540613,-683.43,0.00017534,2]
[406899035,1772267540623,-2723.16,0.00017534,2]
[406899036,1772267540632,-500.0,0.00017534,2]
[406899037,1772267540642,-4724.28,0.00017534,2]
[406899038,1772267540651,-500.0,0.00017534,2]
[406899039,1772267540661,-739.63,0.00017534,2]
[406899040,1772267540669,-500.0,0.00017534,2]
[406899041,1772267540679,-500.0,0.00017534,2]
[406899042,1772267540688,-4297.64,0.00017534,2]
[406899043,1772267540697,-414.33718944,0.00017534,2]
[406899044,1772267540707,-737.38,0.00017534,2]
[406899045,1772267540716,-2549.64,0.00017534,2]
[406899046,1772267540725,-1171.08,0.00017534,2]
[406899047,1772267540735,-2640.18,0.00017534,2]
[406899048,1772267540744,-7472.22,0.00017534,2]
[406899049,1772267540753,-500.0,0.00017534,2]
[406899050,1772267540763,-530.37,0.00017534,2]
[406899051,1772267540772,-1765.65,0.00017534,2]
[406899052,1772267540783,-506.34682236,0.00017534,2]
[406899053,1772267540792,-500.0,0.00017534,2]
[406899054,1772267540802,-1444.95,0.00017534,2]
[406899055,1772267540812,-2445.15,0.00017534,2]
[406899056,1772267540822,-4088.91,0.00017534,2]
[406899057,1772267540831,-2774.65,0.00017534,2]
[406899058,1772267540841,-3783.55,0.00017534,2]
[406899059,1772267540850,-1333.68,0.00017534,2]
[406899060,1772267540859,-14153.91,0.00017534,2]
[406899061,1772267540868,-500.0,0.00017534,2]
[406899062,1772267540877,-3218.57,0.00017534,2]
[406899063,1772267540887,-2092.55,0.00017534,2]
[406899064,1772267540897,-2893.22,0.00017534,2]
[406899065,1772267540906,-2259.28,0.00017534,2]
[406899066,1772267540916,-1798.11,0.00017534,2]
[406899067,1772267540925,-540.91,0.00017534,2]
[406899068,1772267540935,-500.0,0.00017534,2]
[406899069,1772267540944,-16752.77,0.00017534,2]
[406899070,1772267540954,-500.97,0.00017534,2]
[406899071,1772267540963,-526.47,0.00017534,2]
[406899072,1772267540972,-1638.09,0.00017534,2]
[406899073,1772267540982,-4470.34,0.00017534,2]
[406899074,1772267540991,-2160.15,0.00017534,2]
[406899075,1772267541001,-611.61,0.00017534,2]
[406899076,1772267541010,-587.54,0.00017534,2]
[406899077,1772267541019,-500.0,0.00017534,2]
[406899078,1772267541028,-679.97,0.00017534,2]
[406899079,1772267541039,-62454.68,0.00017534,2]
[406899080,1772267541049,-500.0,0.00017534,2]
[406899081,1772267541058,-4931.54,0.00017534,2]
[406899082,1772267541068,-691.25,0.00017534,2]
[406899083,1772267541077,-2603.07,0.00017534,2]
[406899084,1772267541087,-7026.09,0.00017534,2]
[406899085,1772267541096,-668.0,0.00017534,2]
[406899086,1772267541106,-1193.68,0.00017534,2]
[406899087,1772267541115,-635.83,0.00017534,2]
[406899088,1772267541125,-500.0,0.00017534,2]
[406899089,1772267541138,-1018.54,0.00017534,2]
[406899090,1772267541148,-8795.12,0.00017534,2]
[406899091,1772267541157,-500.0,0.00017534,2]
[406899092,1772267541167,-511.19,0.00017534,2]
[406899093,1772267541176,-500.0,0.00017534,2]
[406899094,1772267541187,-2059.67,0.00017534,2]
[406899095,1772267541197,-2791.04,0.00017534,2]
[406899096,1772267541206,-500.0,0.00017534,2]
[406899097,1772267541216,-4120.89,0.00017534,2]
[406899098,1772267541227,-738.7,0.00017534,2]
[406899099,1772267541237,-858.19,0.00017534,2]
[406899100,1772267541247,-1094.77,0.00017534,2]
[406899101,1772267541257,-1558.46,0.00017534,2]
[406899102,1772267541266,-3104.3,0.00017534,2]
[406899103,1772267541276,-191.25171822,0.00017534,2]
[406899104,1772267541287,-41294.65,0.00017534,2]
[406899105,1772267541297,-500.0,0.00017534,2]
[406899106,1772267541307,-4305.9,0.00017534,2]
[406899107,1772267541316,-1079.08,0.00017534,2]
[406899108,1772267541326,-1590.25,0.00017534,2]
[406899109,1772267541336,-17553.64,0.00017534,2]
[406899110,1772267541345,-829.59,0.00017534,2]
[406899111,1772267541355,-836.94,0.00017534,2]
[406899112,1772267541365,-2501.06,0.00017534,2]
[406899113,1772267541374,-624.89,0.00017534,2]
[406899114,1772267541384,-165.95516989,0.00017534,2]
[406899115,1772267541393,-500.0,0.00017534,2]
[406899116,1772267541403,-587.66,0.00017534,2]
[406899117,1772267541412,-612.52,0.00017534,2]
[406899118,1772267541421,-798.52,0.00017534,2]
[406899119,1772267541431,-920.96,0.00017534,2]
[406899120,1772267541441,-502.1,0.00017534,2]
[406899121,1772267541450,-833.23,0.00017534,2]
[406899122,1772267541460,-1661.19,0.00017534,2]
[406899123,1772267541470,-884.15,0.00017534,2]
[406899124,1772267541480,-997.87,0.00017534,2]
[406899125,1772267541490,-714.12,0.00017534,2]
[406899126,1772267541500,-2806.98,0.00017534,2]
[406899127,1772267541510,-3389.85,0.00017534,2]
[406899128,1772267541519,-500.0,0.00017534,2]
[406899129,1772267541529,-500.0,0.00017534,2]
[406899130,1772267541539,-736.98,0.00017534,2]
[406899131,1772267541548,-3040.54,0.00017534,2]
[406899132,1772267541557,-1624.77,0.00017534,2]
[406899133,1772267541629,-8862.41,0.00017534,2]
[406899134,1772267541639,-21682.96,0.00017534,2]
[406899135,1772267541649,-1097.26,0.00017534,2]
[406899136,1772267541659,-500.0,0.00017534,2]
[406899137,1772267541668,-7502.8,0.00017534,2]
[406899138,1772267541678,-565.02,0.00017534,2]
[406899139,1772267541688,-6625.37,0.00017534,2]
[406899140,1772267541698,-2462.23,0.00017534,2]
[406899141,1772267541707,-1430.4,0.00017534,2]
[406899142,1772267541717,-1591.21,0.00017534,2]
[406899143,1772267541727,-1097.85,0.00017534,2]
[406899144,1772267541737,-941.74,0.00017534,2]
[406899145,1772267541747,-2991.59,0.00017534,2]
[406899146,1772267541757,-1208.52,0.00017534,2]
[406899147,1772267541766,-1852.72,0.00017534,2]
[406899148,1772267541775,-500.0,0.00017534,2]
[406899149,1772267541785,-2739.1,0.00017534,2]
[406899150,1772267541795,-500.0,0.00017534,2]
[406899151,1772267541805,-3806.49,0.00017534,2]
[406899152,1772267541814,-7703.07,0.00017534,2]
[406899153,1772267541823,-515.24,0.00017534,2]
[406899154,1772267541833,-508.20598765,0.00017534,2]
[406899155,1772267541842,-1269.75,0.00017534,2]
[406899156,1772267541851,-2065.59,0.00017534,2]
[406899157,1772267541861,-1723.78,0.00017534,2]
[406899158,1772267541871,-2115.78,0.00017534,2]
[406899159,1772267541880,-1897.54,0.00017534,2]
[406899160,1772267541889,-3092.48,0.00017534,2]
[406899161,1772267541899,-500.0,0.00017534,2]
[406899162,1772267541908,-922.16,0.00017534,2]
[406899163,1772267541918,-1034.45,0.00017534,2]
[406899164,1772267541927,-4771.37,0.00017534,2]
[406899165,1772267541937,-500.0,0.00017534,2]
[406899166,1772267541947,-1231.85,0.00017534,2]
[406899167,1772267541957,-253.68966829,0.00017534,2]
[406899168,1772267541966,-160.0,0.000176,2]
[406899169,1772267541976,-939.8342441,0.00017667,16]
[406899170,1772267541985,-403.0,0.0001768,2]
[406899171,1772267541994,-161.0,0.0001768,2]
[406899172,1772267542004,-403.0,0.0001768,2]
[406899173,1772267542013,-403.0,0.0001768,2]
[406899174,1772267542022,-716.0,0.0001768,2]
[406899175,1772267542032,-160.0,0.000178,2]
[406899176,1772267542042,-324.3,0.00017808,2]
[406899177,1772267542052,-607.58,0.00017808,2]
[406899178,1772267542062,-500.0,0.00017808,2]
[406899179,1772267542071,-980.59,0.00017808,2]
[406899180,1772267542081,-500.0,0.00017808,2]
[406899181,1772267542090,-500.0,0.00017808,2]
[406899182,1772267542100,-290.53325249,0.00017808,2]
[406899183,1772267542110,-1353.85,0.00017808,2]
[406899184,1772267542120,-1322.07,0.00017808,2]
[406899185,1772267542130,-692.0,0.00017808,2]
[406899186,1772267542141,-564.22,0.00017808,2]
[406899187,1772267542153,-520.93,0.00017808,2]
[406899188,1772267542163,-500.0,0.00017808,2]
[406899189,1772267542173,-500.0,0.00017808,2]
[406899190,1772267542183,-169.28833607,0.00017808,2]
[406899191,1772267542194,-1711.44,0.00017808,2]
[406899192,1772267542204,-2726.35,0.00017808,2]
[406899193,1772267542214,-500.0,0.00017808,2]
[406899194,1772267542224,-1744.45,0.00017808,2]
[406899195,1772267542234,-500.0,0.00017808,2]
[406899196,1772267542245,-1041.8,0.00017808,2]
[406899197,1772267542255,-737.4,0.00017808,2]
[406899198,1772267542264,-2718.46,0.00017808,2]
[406899199,1772267542274,-770.65,0.00017808,2]
[406899200,1772267542284,-902.4,0.00017808,2]
[406899201,1772267542294,-989.47,0.00017808,2]
[406899202,1772267542304,-558.27,0.00017808,2]
[406899203,1772267542314,-603.96,0.00017808,2]
[406899204,1772267542324,-500.58,0.00017808,2]
[406899205,1772267542334,-2062.12,0.00017808,2]
[406899206,1772267542343,-719.5,0.00017808,2]
[406899207,1772267542353,-525.56,0.00017808,2]
[406899208,1772267542363,-500.0,0.00017808,2]
[406899209,1772267542373,-546.89,0.00017808,2]
[406899210,1772267542383,-1727.31,0.00017808,2]
[406899211,1772267542392,-514.02,0.00017808,2]
[406899212,1772267542402,-860.84,0.00017808,2]
[406899213,1772267542411,-955.26,0.00017808,2]
[406899214,1772267542422,-500.0,0.00017808,2]
[406899215,1772267542431,-725.73,0.00017808,2]
[406899216,1772267542440,-914.38,0.00017808,2]
[406899217,1772267542450,-1116.21,0.00017808,2]
[406899218,1772267542459,-579.95,0.00017808,2]
[406899219,1772267542468,-1326.22,0.00017808,2]
[406899220,1772267542478,-1036.26,0.00017808,2]
[406899221,1772267542488,-936.85,0.00017808,2]
[406899222,1772267542498,-547.18,0.00017808,2]
[406899223,1772267542508,-1250.68,0.00017808,2]
[406899224,1772267542518,-1196.3,0.00017808,2]
[406899225,1772267542528,-1024.08,0.00017808,2]
[406899226,1772267542539,-898.6,0.00017808,2]
[406899227,1772267542549,-500.0,0.00017808,2]
[406899228,1772267542559,-500.0,0.00017808,2]
[406899229,1772267542569,-609.4,0.00017808,2]
[406899230,1772267542578,-1312.05,0.00017808,2]
[406899231,1772267542587,-937.86,0.00017808,2]
[406899232,1772267542597,-651.8,0.00017808,2]
[406899233,1772267542607,-500.0,0.00017808,2]
[406899234,1772267542616,-500.0,0.00017808,2]
[406899235,1772267542626,-500.0,0.00017808,2]
[406899236,1772267542636,-517.11,0.00017808,2]
[406899237,1772267542646,-500.0,0.00017808,2]
[406899238,1772267542655,-500.0,0.00017808,2]
[406899239,1772267542665,-1446.65,0.00017808,2]
[406899240,1772267542675,-500.0,0.00017808,2]
[406899241,1772267542684,-1733.53,0.00017808,2]
[406899242,1772267542694,-1436.12,0.00017808,2]
[406899243,1772267542703,-685.31,0.00017808,2]
[406899244,1772267542713,-580.66,0.00017808,2]
[406899245,1772267542722,-571.4,0.00017808,2]
[406899246,1772267542732,-864.92,0.00017808,2]
[406899247,1772267542742,-846.6,0.00017808,2]
[406899248,1772267542752,-1593.78,0.00017808,2]
[406899249,1772267542762,-750.44,0.00017808,2]
[406899250,1772267542772,-1521.42,0.00017808,2]
[406899251,1772267542783,-1247.19,0.00017808,2]
[406899252,1772267542793,-705.82,0.00017808,2]
[406899253,1772267542803,-529.62,0.00017808,2]
[406899254,1772267542812,-500.0,0.00017808,2]
[406899255,1772267542823,-500.0,0.00017808,2]
[406899256,1772267542833,-745.32,0.00017808,2]
[406899257,1772267542843,-1605.01,0.00017808,2]
[406899258,1772267542853,-360.46512712,0.00017808,2]
[406899259,1772267542863,-1610.8,0.00017808,2]
[406899260,1772267542873,-1001.72,0.00017808,2]
[406899261,1772267542883,-627.88,0.00017808,2]
[406899262,1772267542893,-1059.56,0.00017808,2]
[406899263,1772267542903,-500.0,0.00017808,2]
[406899264,1772267542913,-917.08,0.00017808,2]
[406899265,1772267542922,-500.0,0.00017808,2]
[406899266,1772267542932,-529.27,0.00017808,2]
[406899267,1772267542943,-927.57,0.00017808,2]
[406899268,1772267542953,-650.87,0.00017808,2]
[406899269,1772267542963,-661.99,0.00017808,2]
[406899270,1772267542973,-500.0,0.00017808,2]
[406899271,1772267542983,-1219.63,0.00017808,2]
[406899272,1772267542992,-500.0,0.00017808,2]
[406899273,1772267543002,-818.16,0.00017808,2]
[406899274,1772267543012,-564.11,0.00017808,2]
[406899275,1772267543022,-500.0,0.00017808,2]
[406899276,1772267543031,-773.68,0.00017808,2]
[406899277,1772267543042,-500.0,0.00017808,2]
[406899278,1772267543052,-1058.67,0.00017808,2]
[406899279,1772267543062,-544.13,0.00017808,2]
[406899280,1772267543071,-500.0,0.00017808,2]
[406899281,1772267543082,-1354.43,0.00017808,2]
[406899282,1772267543092,-500.0,0.00017808,2]
[406899283,1772267543101,-947.35,0.00017808,2]
[406899284,1772267543111,-577.2,0.00017808,2]
[406899285,1772267543122,-617.88,0.00017808,2]
[406899286,1772267543131,-1264.55,0.00017808,2]
[406899287,1772267543145,-609.45,0.00017808,2]
[406899288,1772267543155,-787.95,0.00017808,2]
[406899289,1772267543165,-1665.88,0.00017808,2]
[406899290,1772267543175,-571.43,0.00017808,2]
[406899291,1772267543186,-592.16870693,0.00017808,2]
[406899292,1772267543196,-7573.22,0.00017808,2]
[406899293,1772267543205,-554.61,0.00017808,2]
[406899294,1772267543215,-500.0,0.00017808,2]
[406899295,1772267543226,-500.0,0.00017808,2]
[406899296,1772267543236,-500.0,0.00017808,2]
[406899297,1772267543246,-1743.64,0.00017808,2]
[406899298,1772267543256,-2006.98,0.00017808,2]
[406899299,1772267543266,-647.16,0.00017808,2]
[406899300,1772267543276,-2108.79,0.00017808,2]
[406899301,1772267543287,-839.36,0.00017808,2]
[406899302,1772267543296,-878.12,0.00017808,2]
[406899303,1772267543306,-7180.71,0.00017808,2]
[406899304,1772267543315,-784.54,0.00017808,2]
[406899305,1772267543326,-696.62,0.00017808,2]
[406899306,1772267543335,-854.66,0.00017808,2]
[406899307,1772267543345,-1726.59,0.00017808,2]
[406899308,1772267543355,-1075.35,0.00017808,2]
[406899309,1772267543365,-5780.22,0.00017808,2]
[406899310,1772267543375,-1052.35,0.00017808,2]
[406899311,1772267543385,-1604.1,0.00017808,2]
[406899312,1772267543394,-617.93,0.00017808,2]
[406899313,1772267543404,-1438.35,0.00017808,2]
[406899314,1772267543414,-1671.97,0.00017808,2]
[406899315,1772267543424,-566.35,0.00017808,2]
[406899316,1772267543434,-695.06,0.00017808,2]
[406899317,1772267543444,-692.56,0.00017808,2]
[406899318,1772267543454,-1703.31,0.00017808,2]
[406899319,1772267543463,-1091.8,0.00017808,2]
[406899320,1772267543473,-526.21,0.00017808,2]
[406899321,1772267543484,-1946.78,0.00017808,2]
[406899322,1772267543494,-1093.05,0.00017808,2]
[406899323,1772267543504,-522.9,0.00017808,2]
[406899324,1772267543514,-1010.99,0.00017808,2]
[406899325,1772267543524,-597.64,0.00017808,2]
[406899326,1772267543534,-632.06,0.00017808,2]
[406899327,1772267543544,-1404.24,0.00017808,2]
[406899328,1772267543555,-3447.77,0.00017808,2]
[406899329,1772267543565,-592.02,0.00017808,2]
[406899330,1772267543575,-303.99498785,0.00017808,2]
[406899331,1772267543585,-1639.95,0.00017808,2]
[406899332,1772267543595,-766.57,0.00017808,2]
[406899333,1772267543605,-2199.16,0.00017808,2]
[406899334,1772267543615,-515.11,0.00017808,2]
[406899335,1772267543625,-1033.14,0.00017808,2]
[406899336,1772267543635,-1309.19,0.00017808,2]
[406899337,1772267543645,-1688.18,0.00017808,2]
[406899338,1772267543655,-3009.71,0.00017808,2]
[406899339,1772267543664,-1567.57,0.00017808,2]
[406899340,1772267543674,-500.0,0.00017808,2]
[406899341,1772267543684,-1039.64,0.00017808,2]
[406899342,1772267543695,-578.85,0.00017808,2]
[406899343,1772267543705,-500.0,0.00017808,2]
[406899344,1772267543714,-2382.93,0.00017808,2]
[406899345,1772267543724,-2151.2,0.00017808,2]
[406899346,1772267543734,-1096.15,0.00017808,2]
[406899347,1772267543744,-683.72,0.00017808,2]
[406899348,1772267543754,-832.49,0.00017808,2]
[406899349,1772267543766,-692.6,0.00017808,2]
[406899350,1772267543777,-500.0,0.00017808,2]
[406899351,1772267543788,-3399.35,0.00017808,2]
[406899352,1772267543798,-865.62,0.00017808,2]
[406899353,1772267543808,-929.25,0.00017808,2]
[406899354,1772267543818,-856.18,0.00017808,2]
[406899355,1772267543828,-1271.22,0.00017808,2]
[406899356,1772267543841,-1063.54,0.00017808,2]
[406899357,1772267543859,-1318.72,0.00017808,2]
[406899358,1772267543870,-705.79,0.00017808,2]
[406899359,1772267543880,-2424.89,0.00017808,2]
[406899360,1772267543890,-1446.29,0.00017808,2]
[406899361,1772267543905,-500.0,0.00017808,2]
[406899362,1772267543918,-2361.52,0.00017808,2]
[406899363,1772267543928,-500.0,0.00017808,2]
[406899364,1772267543938,-4592.95,0.00017808,2]
[406899365,1772267543948,-2215.2,0.00017808,2]
[406899366,1772267543958,-1435.8,0.00017808,2]
[406899367,1772267543968,-1576.84,0.00017808,2]
[406899368,1772267543978,-2561.33,0.00017808,2]
[406899369,1772267543988,-1085.51,0.00017808,2]
[406899370,1772267543999,-717.42,0.00017808,2]
[406899371,1772267544009,-1108.2,0.00017808,2]
[406899372,1772267544018,-425.00373778,0.00017808,2]
[406899373,1772267544028,-3100.42,0.00017808,2]
[406899374,1772267544042,-1341.93,0.00017808,2]
[406899375,1772267544052,-1305.67,0.00017808,2]
[406899376,1772267544061,-500.0,0.00017808,2]
[406899377,1772267544072,-1472.57,0.00017808,2]
[406899378,1772267544081,-3197.66,0.00017808,2]
[406899379,1772267544091,-561.98,0.00017808,2]
[406899380,1772267544101,-615.34,0.00017808,2]
[406899381,1772267544111,-699.96,0.00017808,2]
[406899382,1772267544121,-500.0,0.00017808,2]
[406899383,1772267544131,-1020.13,0.00017808,2]
[406899384,1772267544142,-500.0,0.00017808,2]
[406899385,1772267544155,-596.63,0.00017808,2]
[406899386,1772267544165,-500.0,0.00017808,2]
[406899387,1772267544175,-1033.36,0.00017808,2]
[406899388,1772267544184,-500.0,0.00017808,2]
[406899389,1772267544195,-500.0,0.00017808,2]
[406899390,1772267544205,-2312.35,0.00017808,2]
[406899391,1772267544215,-955.01,0.00017808,2]
[406899392,1772267544226,-806.51,0.00017808,2]
[406899393,1772267544236,-1522.66,0.00017808,2]
[406899394,1772267544246,-867.0,0.00017808,2]
[406899395,1772267544256,-7146.16,0.00017808,2]
[406899396,1772267544265,-500.0,0.00017808,2]
[406899397,1772267544275,-500.0,0.00017808,2]
[406899398,1772267544289,-1028.35,0.00017808,2]
[406899399,1772267544299,-1008.96,0.00017808,2]
[406899400,1772267544310,-1352.59,0.00017808,2]
[406899401,1772267544319,-506.03,0.00017808,2]
[406899402,1772267544330,-500.0,0.00017808,2]
[406899403,1772267544340,-500.0,0.00017808,2]
[406899404,1772267544350,-500.0,0.00017808,2]
[406899405,1772267544360,-764.41,0.00017808,2]
[406899406,1772267544369,-590.75799286,0.00017808,2]
[406899407,1772267544379,-1761.81,0.00017808,2]
[406899408,1772267544389,-2215.04,0.00017808,2]
[406899409,1772267544398,-517.41,0.00017808,2]
[406899410,1772267544408,-517.59,0.00017808,2]
[406899411,1772267544418,-963.32,0.00017808,2]
[406899412,1772267544428,-700.0,0.00017808,2]
[406899413,1772267544437,-899.12,0.00017808,2]
[406899414,1772267544447,-1300.35,0.00017808,2]
[406899415,1772267544457,-5319.48,0.00017808,2]
[406899416,1772267544467,-1252.77,0.00017808,2]
[406899417,1772267544478,-587.74,0.00017808,2]
[406899418,1772267544488,-1166.63,0.00017808,2]
[406899419,1772267544498,-899.07,0.00017808,2]
[406899420,1772267544508,-2895.24,0.00017808,2]
[406899421,1772267544518,-1068.48,0.00017808,2]
[406899422,1772267544528,-968.49,0.00017808,2]
[406899423,1772267544541,-500.0,0.00017808,2]
[406899424,1772267544550,-2416.57,0.00017808,2]
[406899425,1772267544560,-1587.58,0.00017808,2]
[406899426,1772267544570,-647.96,0.00017808,2]
[406899427,1772267544579,-8070.28,0.00017808,2]
[406899428,1772267544590,-731.15,0.00017808,2]
[406899429,1772267544600,-500.0,0.00017808,2]
[406899430,1772267544610,-500.0,0.00017808,2]
[406899431,1772267544620,-1997.06,0.00017808,2]
[406899432,1772267544630,-3186.98,0.00017808,2]
[406899433,1772267544640,-3896.0,0.00017808,2]
[406899434,1772267544650,-527.94,0.00017808,2]
[406899435,1772267544660,-989.6,0.00017808,2]
[406899436,1772267544670,-7025.66,0.00017808,2]
[406899437,1772267544679,-500.0,0.00017808,2]
[406899438,1772267544688,-682.38,0.00017808,2]
[406899439,1772267544699,-728.78,0.00017808,2]
[406899440,1772267544709,-659.28,0.00017808,2]
[406899441,1772267544718,-898.93,0.00017808,2]
[406899442,1772267544728,-793.11,0.00017808,2]
[406899443,1772267544737,-1706.3,0.00017808,2]
[406899444,1772267544747,-659.85,0.00017808,2]
[406899445,1772267544757,-1134.79,0.00017808,2]
[406899446,1772267544767,-11125.25,0.00017808,2]
[406899447,1772267544776,-7153.51,0.00017808,2]
[406899448,1772267544789,-648.35,0.00017808,2]
[406899449,1772267544799,-5078.3,0.00017808,2]
[406899450,1772267544808,-683.43,0.00017808,2]
[406899451,1772267544818,-2723.16,0.00017808,2]
[406899452,1772267544828,-500.0,0.00017808,2]
[406899453,1772267544837,-4724.28,0.00017808,2]
[406899454,1772267544847,-500.0,0.00017808,2]
[406899455,1772267544857,-739.63,0.00017808,2]
[406899456,1772267544867,-500.0,0.00017808,2]
[406899457,1772267544877,-500.0,0.00017808,2]
[406899458,1772267544887,-4297.64,0.00017808,2]
[406899459,1772267544896,-737.38,0.00017808,2]
[406899460,1772267544905,-2549.64,0.00017808,2]
[406899461,1772267544915,-1171.08,0.00017808,2]
[406899462,1772267544924,-2640.18,0.00017808,2]
[406899463,1772267544934,-7472.22,0.00017808,2]
[406899464,1772267544944,-500.0,0.00017808,2]
[406899465,1772267544954,-530.37,0.00017808,2]
[406899466,1772267544963,-1765.65,0.00017808,2]
[406899467,1772267544972,-500.0,0.00017808,2]
[406899468,1772267544982,-1444.95,0.00017808,2]